bitfinex-derivatives/quotes_ETHF0:USTF0_20260305
["timestamp","ask_amount","ask_price","bid_price","bid_amount"]
[1772703141232,0.590132,2129.3,2128.3,0.55264891]
[1772703142940,0.55783841,2129.1,2128.2,0.0051]
[1772703143141,0.55783841,2128.9,2128.2,0.0051]
[1772703143938,0.55783841,2128.9,2128.2,0.55774891]
[1772703145138,0.55783841,2128.9,2128.2,0.0051]
[1772703148545,0.55783841,2128.9,2128.2,0.60022903]
[1772703151845,0.55783841,2128.9,2128.2,0.0051]
[1772703153450,0.54174668,2128.8,2128.2,0.0051]
[1772703156250,0.54174668,2128.8,2127.7,5.39331932]
[1772703156450,0.54174668,2128.8,2127.8,0.59512903]
[1772703157152,0.54174668,2128.8,2127.8,0.59897199]
[1772703157550,0.54174668,2128.8,2128.0,0.59512903]
[1772703157950,0.54174668,2128.8,2128.0,4.44938932]
[1772703158155,0.54174668,2128.8,2128.1,0.59512903]
[1772703159154,0.54174668,2128.8,2128.0,0.59512903]
[1772703162257,0.54174668,2128.8,2127.8,0.59897199]
[1772703163157,0.54174668,2128.6,2127.8,0.59897199]
[1772703163458,0.54174668,2128.5,2127.8,0.00384296]
[1772703169262,0.54174668,2128.5,2127.5,0.56674266]
[1772703170257,0.54174668,2128.5,2127.5,0.57213971]
[1772703175367,0.58307128,2128.4,2127.5,0.57213971]
[1772703175570,0.58307128,2128.4,2127.5,0.00539705]
[1772703175965,0.58307128,2128.4,2127.5,0.57213971]
[1772703176868,0.58307128,2128.2,2127.5,0.57213971]
[1772703177967,0.58307128,2128.4,2127.5,0.57213971]
[1772703178367,0.58307128,2128.4,2127.5,0.00539705]
[1772703179571,0.58307128,2128.4,2127.5,0.57213971]
[1772703180671,0.58307128,2128.2,2127.2,0.56674266]
[1772703180970,0.58307128,2128.0,2127.2,0.56674266]
[1772703181770,0.58307128,2128.0,2127.2,0.57162046]
[1772703182771,0.58307128,2128.0,2126.9,0.56674266]
[1772703182972,0.58307128,2127.9,2126.7,0.56674266]
[1772703183578,0.58307128,2127.9,2126.7,0.57273066]
[1772703185467,0.58307128,2127.9,2126.8,0.56674266]
[1772703185872,0.58307128,2127.9,2127.0,0.56674266]
[1772703186072,0.58307128,2128.1,2127.2,0.56674266]
[1772703187170,6.157,2128.2,2127.4,0.56674266]
[1772703187171,6.74007128,2128.2,2127.4,0.56674266]
[1772703187375,6.157,2128.2,2127.4,0.56674266]
[1772703188578,6.74007128,2128.2,2127.4,0.56674266]
[1772703188974,0.58307128,2128.1,2127.4,0.56674266]
[1772703190080,0.58307128,2128.5,2127.4,0.56674266]
[1772703190780,0.58307128,2128.5,2127.2,0.56674266]
[1772703191979,0.58307128,2128.1,2127.0,0.56674266]
[1772703192182,0.58307128,2127.9,2126.8,0.56674266]
[1772703192579,0.58307128,2127.8,2126.8,0.56674266]
[1772703194078,0.58307128,2127.7,2126.8,0.56674266]
[1772703197279,0.58307128,2128.0,2127.1,0.56674266]
[1772703204697,0.58307128,2128.0,2127.3,0.54731378]
[1772703204994,0.58307128,2128.0,2127.3,1.25631378]
[1772703205591,0.58307128,2128.0,2127.4,0.54731378]
[1772703209701,0.58307128,2128.0,2127.3,0.709]
[1772703210001,3.92243676,2128.2,2127.4,0.57759242]
[1772703210192,0.54376341,2128.3,2127.4,0.57759242]
[1772703213695,0.54376341,2128.3,2127.5,0.57759242]
[1772703216695,0.54376341,2128.3,2127.6,0.57759242]
[1772703218092,0.00596294,2128.6,2127.8,0.57759242]
[1772703218295,0.54376341,2128.9,2128.2,0.57759242]
[1772703219398,0.54967944,2128.9,2128.2,0.58166088]
[1772703223602,0.54967944,2128.9,2128.2,0.00406846]
[1772703223803,0.54967944,2128.9,2128.2,0.58166088]
[1772703225014,0.54376341,2129.2,2128.4,0.57759242]
[1772703225908,0.54835145,2129.2,2128.4,0.57759242]
[1772703232513,0.54835145,2129.2,2128.5,2.14265437]
[1772703233210,0.54835145,2129.2,2128.6,0.55391629]
[1772703233410,0.53810036,2129.6,2129.0,0.55391629]
[1772703234313,0.54354941,2129.6,2129.0,0.55391629]
[1772703235711,0.54354941,2129.6,2128.9,0.55391629]
[1772703237417,0.53810036,2130.0,2129.3,0.55391629]
[1772703237721,0.53810036,2130.5,2129.3,0.55391629]
[1772703238420,0.54357887,2130.5,2129.3,0.55391629]
[1772703242420,0.53810036,2130.3,2129.3,0.55391629]
[1772703242623,0.53810036,2130.3,2129.0,0.55391629]
[1772703242821,0.53810036,2130.1,2129.0,0.55391629]
[1772703243022,0.53810036,2129.9,2129.0,0.55391629]
[1772703243425,0.53810036,2129.9,2128.6,0.55391629]
[1772703245623,0.53810036,2130.0,2129.0,0.55391629]
[1772703245824,0.53810036,2130.2,2129.2,0.55391629]
[1772703247824,0.53810036,2130.4,2129.2,0.55391629]
[1772703248030,0.53810036,2130.4,2129.4,0.55391629]
[1772703248332,0.00547851,2130.5,2129.6,0.55391629]
[1772703249931,0.53810036,2130.8,2129.4,8.77453273]
[1772703249932,0.53810036,2130.8,2129.8,0.55391629]
[1772703250927,0.54395541,2130.8,2129.8,0.55798801]
[1772703253637,0.53810036,2131.8,2130.4,0.55391629]
[1772703253824,0.53810036,2131.8,2130.5,0.55391629]
[1772703254537,0.54237161,2131.8,2130.7,0.55391629]
[1772703261234,0.5826563,2131.8,2130.9,0.54990182]
[1772703261833,0.5826563,2131.8,2130.9,6.69990182]
[1772703262034,0.5826563,2131.8,2130.6,0.54990182]
[1772703262635,0.5826563,2131.8,2130.8,0.54990182]
[1772703263035,0.00427125,2131.8,2131.0,0.54990182]
[1772703264437,0.5826563,2131.8,2131.0,0.54990182]
[1772703264635,0.5826563,2131.8,2130.6,0.54990182]
[1772703265032,0.5826563,2131.8,2129.9,0.23469]
[1772703265033,0.57838505,2131.4,2130.0,0.54990182]
[1772703265234,0.57838505,2131.2,2130.0,0.54990182]
[1772703267540,0.58587435,2131.0,2129.8,0.56309308]
[1772703268141,0.58587435,2131.0,2129.4,1.84545218]
[1772703268142,0.58587435,2130.6,2129.4,1.84545218]
[1772703268539,0.58587435,2130.6,2129.4,0.55902136]
[1772703268744,0.58587435,2130.6,2129.1,0.55902136]
[1772703269239,0.58587435,2130.6,2129.1,0.56310211]
[1772703270836,0.58587435,2130.6,2129.3,0.55902136]
[1772703271941,5.90040376,2131.5,2129.9,0.55902136]
[1772703271942,0.58587435,2130.8,2129.9,0.55902136]
[1772703272240,0.58587435,2130.8,2129.8,0.2347]
[1772703272241,0.58587435,2131.6,2130.1,0.55902136]
[1772703273843,0.23448,2131.9,2130.2,0.55902136]
[1772703273844,0.58587435,2131.4,2130.2,0.55902136]
[1772703277744,0.58587435,2131.4,2130.0,0.55902136]
[1772703277745,0.58587435,2131.2,2130.0,0.55902136]
[1772703282852,0.58587435,2131.2,2130.2,0.55902136]
[1772703283153,0.58587435,2131.2,2130.1,0.23645283]
[1772703283654,0.58587435,2131.2,2130.1,0.79547419]
[1772703284250,0.58587435,2131.2,2130.2,0.55902136]
[1772703285356,0.58587435,2131.2,2130.3,0.55902136]
[1772703285649,0.58587435,2131.7,2130.5,0.55902136]
[1772703285959,0.58587435,2131.7,2130.7,0.55902136]
[1772703286159,0.58587435,2131.7,2130.7,0.56426544]
[1772703289760,0.58587435,2131.7,2130.7,0.00524408]
[1772703290662,0.5696061,2131.3,2130.3,0.5934695]
[1772703290956,0.5696061,2131.3,2129.9,0.82992233]
[1772703291155,0.5696061,2131.3,2130.0,0.5934695]
[1772703291557,0.5696061,2131.3,2130.0,0.59896005]
[1772703292255,0.5696061,2131.2,2130.0,0.59896005]
[1772703293156,0.5696061,2131.2,2130.1,0.5934695]
[1772703297255,0.5696061,2131.2,2130.3,0.5934695]
[1772703297656,0.5696061,2131.4,2130.5,0.5934695]
[1772703300156,0.5696061,2131.4,2130.6,0.23461]
[1772703300361,0.5696061,2131.6,2130.7,0.5934695]
[1772703302762,0.5696061,2131.5,2130.3,0.5934695]
[1772703302962,0.5696061,2131.2,2130.1,0.5934695]
[1772703305469,0.5696061,2131.2,2130.2,0.5934695]
[1772703305962,3.92243676,2131.5,2130.4,0.5934695]
[1772703306168,0.5696061,2131.4,2130.5,0.5934695]
[1772703306664,0.5696061,2131.4,2130.6,0.5934695]
[1772703308561,0.5696061,2131.4,2130.4,0.5934695]
[1772703308768,0.5696061,2131.3,2130.2,0.82992233]
[1772703309365,0.5696061,2131.3,2130.2,0.23645283]
[1772703309366,0.5696061,2131.2,2130.2,0.23645283]
[1772703309765,0.5696061,2131.2,2130.1,0.5934695]
[1772703312768,0.5696061,2131.2,2130.2,0.5934695]
[1772703313165,0.5696061,2131.1,2130.2,0.5934695]
[1772703315872,0.5696061,2131.1,2130.2,0.82992233]
[1772703316466,0.5696061,2131.1,2130.3,0.5934695]
[1772703317874,0.5696061,2131.1,2130.2,0.23645283]
[1772703318069,0.5696061,2131.0,2130.0,0.00549055]
[1772703318274,0.5696061,2130.9,2130.0,0.00549055]
[1772703318475,0.5696061,2130.9,2130.0,0.59896005]
[1772703318677,0.5696061,2130.9,2130.1,0.5934695]
[1772703323571,0.5696061,2130.9,2130.0,0.00549055]
[1772703324874,0.5696061,2130.9,2130.0,0.57392906]
[1772703326876,0.5696061,2130.9,2130.0,0.00549055]
[1772703327979,0.58425566,2130.7,2129.5,0.55505845]
[1772703328875,0.58425566,2130.7,2129.5,0.56035838]
[1772703330783,0.58425566,2130.9,2130.0,0.55505845]
[1772703330984,0.58425566,2131.3,2130.4,0.55505845]
[1772703331180,0.57501707,2131.3,2130.6,0.55505845]
[1772703331385,0.58425566,2131.6,2130.6,0.55505845]
[1772703333783,0.58425566,2131.6,2130.7,0.55505845]
[1772703334185,0.58852691,2131.8,2130.7,0.55505845]
[1772703334982,0.00427125,2131.8,2131.0,2.61502487]
[1772703335182,0.00427125,2131.8,2131.1,0.55505845]
[1772703335389,0.58425566,2132.3,2131.3,0.55505845]
[1772703335590,0.58425566,2132.3,2131.4,0.55505845]
[1772703336285,0.58865237,2132.3,2131.4,0.55505845]
[1772703337786,0.58865237,2132.3,2131.6,0.55505845]
[1772703339491,0.58865237,2132.3,2131.5,6.149]
[1772703339785,0.58865237,2132.3,2131.4,0.55505845]
[1772703340290,0.58865237,2132.3,2131.6,0.55505845]
[1772703340489,0.00439671,2132.3,2131.6,0.55505845]
[1772703343293,0.58425566,2133.1,2132.0,0.55505845]
[1772703343491,0.58425566,2133.8,2132.5,0.55505845]
[1772703343696,0.58425566,2134.0,2133.1,0.55505845]
[1772703343887,0.58425566,2134.0,2133.2,0.55505845]
[1772703344094,0.58425566,2134.0,2133.0,6.148]
[1772703344293,0.58996527,2134.0,2133.0,0.0037721]
[1772703344494,0.58996527,2134.0,2133.0,0.55883055]
[1772703344697,0.58996527,2134.0,2133.1,0.55505845]
[1772703344896,0.58996527,2134.0,2133.3,0.55505845]
[1772703345292,0.58425566,2134.9,2133.5,0.55505845]
[1772703346199,0.58425566,2134.8,2133.5,0.55505845]
[1772703346701,0.58425566,2134.5,2133.2,0.55505845]
[1772703347705,0.58425566,2134.5,2133.4,0.55505845]
[1772703348905,0.58425566,2134.5,2133.5,6.69660761]
[1772703349102,0.58425566,2134.5,2133.6,0.55160761]
[1772703350496,0.58425566,2134.5,2133.4,0.55160761]
[1772703352803,0.58425566,2134.5,2133.6,0.55160761]
[1772703353602,0.00492479,2134.9,2133.6,0.55160761]
[1772703353803,0.56374134,2134.8,2133.7,0.55160761]
[1772703354609,0.56374134,2134.8,2133.9,0.55160761]
[1772703356108,0.00492479,2134.9,2133.9,3.16663248]
[1772703356417,0.00492479,2134.9,2134.0,0.55160761]
[1772703356910,0.56374134,2135.2,2134.3,0.55160761]
[1772703357109,0.56374134,2135.2,2134.5,0.55160761]
[1772703357303,0.56374134,2135.4,2134.5,0.55160761]
[1772703357502,0.56374134,2135.4,2134.1,0.23423]
[1772703357503,0.56374134,2135.4,2134.2,0.55160761]
[1772703357713,0.56374134,2135.4,2133.9,0.55160761]
[1772703358012,0.56954606,2135.4,2133.9,0.555812]
[1772703358215,0.2341,2135.3,2133.9,0.555812]
[1772703358403,0.56374134,2135.2,2134.0,0.55160761]
[1772703358603,0.56374134,2135.2,2134.2,0.55160761]
[1772703360418,0.56374134,2135.2,2134.0,0.55160761]
[1772703361510,0.56374134,2135.0,2133.9,0.00420439]
[1772703361711,0.56374134,2134.9,2133.9,0.00420439]
[1772703362219,0.56374134,2134.8,2133.9,0.00420439]
[1772703362713,0.56374134,2134.8,2133.9,0.555812]
[1772703362913,0.56374134,2135.3,2133.9,0.555812]
[1772703363114,0.56374134,2135.3,2134.1,0.55160761]
[1772703363319,0.56374134,2135.3,2134.3,0.55160761]
[1772703364419,0.56374134,2135.3,2134.1,0.55160761]
[1772703365215,0.56374134,2135.1,2133.9,0.555812]
[1772703365420,0.56374134,2134.9,2133.9,0.00420439]
[1772703366923,0.56374134,2134.7,2133.5,0.55160761]
[1772703368120,0.56374134,2134.7,2133.5,0.0052668]
[1772703368517,0.56374134,2134.5,2133.5,0.0052668]
[1772703369022,0.56374134,2134.3,2133.1,0.55160761]
[1772703369818,0.56374134,2134.3,2133.1,0.55619331]
[1772703370225,0.56374134,2134.3,2133.2,0.55160761]
[1772703373028,4.08756391,2134.9,2133.4,0.55160761]
[1772703373029,0.56374134,2134.8,2133.4,0.55160761]
[1772703373323,0.56374134,2134.7,2133.8,0.55160761]
[1772703373522,0.56374134,2135.0,2134.0,0.55160761]
[1772703373922,0.56374134,2135.0,2133.8,0.55160761]
[1772703374527,0.56374134,2134.9,2133.8,0.55160761]
[1772703374930,0.56374134,2134.8,2133.5,0.55160761]
[1772703375327,0.56374134,2134.7,2133.5,0.55160761]
[1772703375827,0.56374134,2134.6,2133.5,0.55160761]
[1772703380031,0.5703887,2134.5,2133.5,0.55160761]
[1772703380230,0.5703887,2134.5,2133.1,0.24103853]
[1772703380231,0.5703887,2134.5,2133.2,0.54683487]
[1772703382337,3.85342391,2134.6,2133.2,0.54683487]
[1772703382338,0.5703887,2134.3,2133.2,0.54683487]
[1772703382541,0.5703887,2134.3,2133.1,0.55142057]
[1772703382738,0.5703887,2134.1,2133.1,0.55142057]
[1772703387836,0.57285295,2134.3,2133.3,0.58489908]
[1772703388438,0.57285295,2134.7,2133.7,0.58489908]
[1772703388639,0.57285295,2134.7,2133.9,0.58489908]
[1772703389442,5.87335607,2135.4,2133.8,0.23426]
[1772703389443,4.49313458,2135.4,2134.1,0.58489908]
[1772703389642,0.57865767,2135.4,2134.3,0.58489908]
[1772703390644,0.57865767,2135.4,2134.7,0.58489908]
[1772703390645,0.00580472,2135.4,2134.7,0.58489908]
[1772703390937,0.57285295,2136.1,2135.0,0.58489908]
[1772703391137,0.57285295,2136.1,2134.7,9.90975281]
[1772703391138,0.57285295,2136.4,2135.2,0.58489908]
[1772703391942,0.57685878,2136.4,2135.2,0.58902367]
[1772703392336,0.57685878,2136.4,2135.4,0.58489908]
[1772703392337,0.00400583,2136.4,2135.4,0.58489908]
[1772703392535,5.86755135,2137.1,2135.4,0.58489908]
[1772703392536,0.59682612,2137.7,2136.1,0.23401]
[1772703392745,0.57285295,2138.4,2136.9,0.23391]
[1772703392937,0.57285295,2138.4,2135.9,7.12923714]
[1772703392938,0.23379,2138.1,2136.1,0.58489908]
[1772703393137,0.57285295,2138.0,2136.1,0.58489908]
[1772703393340,0.60660331,2137.6,2136.1,0.58489908]
[1772703393536,0.57285295,2137.1,2136.1,0.00517059]
[1772703393739,0.57285295,2137.1,2136.1,0.59006967]
[1772703393941,0.03375036,2136.9,2136.1,0.59006967]
[1772703394443,0.00501434,2137.6,2136.1,0.59006967]
[1772703394644,0.57285295,2138.3,2136.7,0.58489908]
[1772703394836,0.23363,2139.6,2137.1,0.58489908]
[1772703394837,0.57285295,2138.5,2137.1,0.58489908]
[1772703395149,0.57285295,2138.8,2137.3,0.58489908]
[1772703395337,0.57285295,2138.7,2137.3,0.58489908]
[1772703395543,0.57285295,2138.5,2137.3,0.58489908]
[1772703395742,0.57285295,2138.2,2137.1,0.58489908]
[1772703396141,0.60660331,2138.0,2137.1,0.58489908]
[1772703396340,0.57285295,2138.0,2137.1,0.58489908]
[1772703396544,0.00503347,2138.5,2137.1,0.58489908]
[1772703396736,0.57788642,2138.5,2137.1,0.58489908]
[1772703396936,0.00503347,2138.5,2137.1,0.58489908]
[1772703397148,0.57788642,2138.5,2137.1,0.58489908]
[1772703397447,0.00503347,2138.5,2137.3,0.58489908]
[1772703398048,0.57285295,2138.3,2136.5,0.58489908]
[1772703398743,0.00503347,2138.5,2136.5,0.58489908]
[1772703398744,0.57788642,2138.5,2136.5,0.58489908]
[1772703398937,0.57285295,2138.3,2136.5,0.58489908]
[1772703400239,0.60660331,2138.3,2136.5,0.58489908]
[1772703400841,0.57285295,2138.1,2136.5,0.58489908]
[1772703401348,0.57285295,2137.7,2136.5,0.58489908]
[1772703401743,0.57285295,2138.2,2136.5,0.58489908]
[1772703402047,0.57285295,2138.2,2136.7,0.58489908]
[1772703402248,0.57788642,2138.5,2136.9,0.58489908]
[1772703402748,0.61163678,2138.5,2136.9,0.58489908]
[1772703402941,0.57788642,2138.5,2136.9,0.58489908]
[1772703403138,0.57788642,2138.5,2137.0,0.58489908]
[1772703404547,0.57285295,2138.2,2137.0,0.58489908]
[1772703405142,0.57788642,2138.5,2137.0,0.58489908]
[1772703405946,0.57788642,2138.5,2137.1,0.2339]
[1772703406149,0.00503347,2138.5,2137.2,0.58489908]
[1772703406844,0.57788642,2138.5,2137.2,0.58489908]
[1772703407246,0.57285295,2138.2,2137.2,0.58489908]
[1772703407449,0.57285295,2138.0,2136.5,0.58489908]
[1772703408146,0.57285295,2137.8,2136.5,0.58489908]
[1772703408655,0.57285295,2137.3,2136.5,0.58489908]
[1772703409157,0.57962004,2137.0,2136.5,0.58489908]
[1772703409347,0.5505027,2137.0,2136.5,0.58489908]
[1772703409751,0.03375036,2136.8,2136.2,0.59052468]
[1772703410058,0.5505027,2137.0,2136.2,0.59052468]
[1772703410354,0.23377,2138.3,2136.2,0.59052468]
[1772703410549,0.54586968,2138.2,2136.2,0.59052468]
[1772703410749,0.54586968,2137.9,2136.6,0.59052468]
[1772703411051,0.54586968,2137.9,2136.8,0.59052468]
[1772703411356,0.54586968,2137.9,2137.0,0.59052468]
[1772703411357,0.00469464,2137.9,2137.0,0.59052468]
[1772703411554,0.54586968,2138.3,2137.2,0.59052468]
[1772703411754,0.54586968,2138.3,2137.4,0.59052468]
[1772703412051,0.54586968,2139.4,2137.4,0.59052468]
[1772703412258,0.54586968,2138.9,2137.4,0.59052468]
[1772703412555,0.54994814,2138.9,2137.4,0.59052468]
[1772703412755,0.54586968,2138.5,2137.4,0.59052468]
[1772703413251,0.54586968,2138.8,2137.6,0.59052468]
[1772703413464,0.54586968,2138.8,2137.6,0.59604682]
[1772703413762,0.54586968,2138.4,2137.6,0.59604682]
[1772703414159,0.03375036,2138.2,2137.6,0.59604682]
[1772703414661,0.03375036,2138.1,2137.6,0.59604682]
[1772703414862,0.54586968,2138.4,2137.6,0.59604682]
[1772703415063,0.03375036,2138.2,2137.6,0.59604682]
[1772703416256,0.03375036,2138.1,2137.6,0.59604682]
[1772703416456,0.54586968,2138.4,2137.6,0.59604682]
[1772703416662,0.03375036,2138.2,2137.6,0.59604682]
[1772703416862,0.54586968,2138.4,2137.6,0.59604682]
[1772703417062,0.03375036,2138.2,2137.6,0.59604682]
[1772703417360,0.54586968,2138.8,2137.6,0.59604682]
[1772703421264,0.54586968,2138.6,2137.6,0.00552214]
[1772703421469,0.54586968,2138.4,2137.0,0.59052468]
[1772703421663,0.54586968,2138.2,2137.0,0.59052468]
[1772703421856,0.54586968,2138.0,2136.4,0.59052468]
[1772703422064,9.79109176,2138.6,2136.4,0.59052468]
[1772703422065,0.54586968,2137.8,2136.4,0.59052468]
[1772703422466,0.54586968,2137.8,2136.4,0.59590247]
[1772703422856,0.54586968,2137.6,2136.4,0.00537779]
[1772703423057,0.54586968,2137.4,2136.4,0.00537779]
[1772703423261,0.55113323,2137.4,2136.4,0.00537779]
[1772703423660,0.55113323,2137.4,2135.9,0.59052468]
[1772703423858,0.54586968,2137.0,2135.9,0.59052468]
[1772703424565,0.54586968,2137.0,2135.5,0.59052468]
[1772703424766,0.54586968,2137.0,2135.5,0.59647626]
[1772703426669,0.54586968,2136.8,2135.5,0.59647626]
[1772703429364,0.54586968,2137.1,2135.8,0.59052468]
[1772703429669,0.55113323,2137.4,2136.2,0.59052468]
[1772703430068,0.55113323,2137.4,2136.3,0.59052468]
[1772703430667,0.54586968,2138.2,2136.6,0.59052468]
[1772703430864,0.54586968,2138.2,2137.2,0.59052468]
[1772703431068,0.54586968,2138.2,2136.7,0.59052468]
[1772703431670,0.55103403,2138.2,2136.7,0.59634038]
[1772703432678,0.54586968,2137.8,2136.7,0.0058157]
[1772703433271,0.23381,2137.9,2135.9,2.83715393]
[1772703433272,0.54586968,2137.4,2135.9,0.23402]
[1772703433478,0.54586968,2137.4,2136.0,0.59052468]
[1772703434579,0.54586968,2137.4,2136.0,0.59522914]
[1772703434772,0.54586968,2137.4,2136.2,0.59052468]
[1772703435678,0.54586968,2137.4,2136.0,0.23872446]
[1772703435869,0.54586968,2137.8,2136.7,0.59052468]
[1772703436674,0.54586968,2137.8,2136.2,0.59052468]
[1772703436980,0.54586968,2137.7,2136.2,0.59052468]
[1772703439576,0.54391787,2137.2,2136.0,0.00470446]
[1772703440172,0.54391787,2137.2,2136.0,0.55097409]
[1772703441382,0.54391787,2137.1,2136.0,0.00470446]
[1772703441677,0.54391787,2136.7,2135.4,0.54626963]
[1772703441981,0.54391787,2136.7,2135.0,3.80810848]
[1772703441982,0.54391787,2136.5,2135.0,0.54626963]
[1772703442779,0.54934959,2136.5,2135.0,0.55101116]
[1772703443582,0.54391787,2136.3,2135.0,0.55101116]
[1772703443879,0.54391787,2136.3,2135.0,0.00474153]
[1772703444682,0.234,2136.2,2135.0,0.00474153]
[1772703444882,0.54391787,2136.1,2135.0,0.00474153]
[1772703445581,0.54391787,2136.1,2135.0,0.55101116]
[1772703448489,0.55208138,2136.3,2135.2,0.55950221]
[1772703448678,0.00543172,2136.5,2135.4,0.55950221]
[1772703449182,0.23387,2137.4,2135.0,9.94685001]
[1772703449183,0.55208138,2136.9,2135.8,0.55950221]
[1772703450184,0.5557378,2136.9,2135.8,0.55950221]
[1772703450484,0.5557378,2136.9,2135.2,0.55950221]
[1772703450689,0.5557378,2136.9,2135.4,0.55950221]
[1772703450990,0.55208138,2136.7,2135.4,0.55950221]
[1772703451187,0.55208138,2136.7,2134.7,0.23415]
[1772703451188,0.55208138,2136.5,2135.1,0.55950221]
[1772703451490,6.134,2136.7,2135.1,0.55950221]
[1772703451491,0.55208138,2136.3,2135.1,0.55950221]
[1772703452792,0.55208138,2136.1,2134.6,0.55950221]
[1772703453092,0.55208138,2135.9,2135.0,0.56424374]
[1772703453285,0.55208138,2136.4,2135.0,0.56424374]
[1772703455293,0.55208138,2136.2,2135.0,0.00474153]
[1772703455497,0.55208138,2136.0,2135.0,0.00474153]
[1772703455692,0.55208138,2135.8,2134.6,0.55950221]
[1772703455892,0.55208138,2135.8,2134.1,0.55950221]
[1772703456386,0.55208138,2135.6,2134.1,0.55950221]
[1772703456586,0.55208138,2135.6,2134.1,0.56309243]
[1772703458393,0.55208138,2135.5,2134.1,0.56309243]
[1772703462697,0.55208138,2135.5,2134.1,0.00359022]
[1772703464204,0.55208138,2135.3,2134.1,0.00359022]
[1772703464404,0.5571147,2135.3,2134.1,0.00359022]
[1772703465906,0.5571147,2135.3,2134.1,0.56309243]
[1772703466706,0.5571147,2135.3,2134.1,0.00359022]
[1772703467101,0.55208138,2135.0,2134.1,0.00359022]
[1772703467301,0.55208138,2134.7,2133.5,0.55950221]
[1772703467502,0.55208138,2134.5,2133.5,0.55950221]
[1772703468301,0.55208138,2134.5,2133.5,0.00496846]
[1772703468509,0.55208138,2134.4,2133.5,0.00496846]
[1772703469108,0.55324011,2134.1,2132.6,0.56287624]
[1772703469503,0.2342,2134.4,2132.6,0.56287624]
[1772703469504,0.55324011,2133.8,2132.6,0.56287624]
[1772703469706,0.55324011,2133.6,2132.6,0.56287624]
[1772703470199,0.55762015,2133.6,2132.6,0.56615745]
[1772703470402,0.55324011,2133.5,2132.6,0.00328121]
[1772703470607,0.55324011,2133.2,2131.8,0.56287624]
[1772703471508,0.55324011,2133.1,2131.8,0.56287624]
[1772703471708,0.55324011,2133.1,2131.8,0.56824638]
[1772703472607,0.55324011,2133.0,2132.0,0.56287624]
[1772703473103,0.55324011,2133.5,2132.2,0.56287624]
[1772703473304,0.55324011,2133.5,2132.4,0.56287624]
[1772703474009,0.55324011,2133.3,2132.4,0.56287624]
[1772703474305,0.55324011,2133.5,2132.6,0.56287624]
[1772703475911,0.55324011,2133.4,2132.6,0.56287624]
[1772703477809,0.55324011,2133.4,2132.0,0.56287624]
[1772703478414,0.55324011,2133.3,2132.0,0.56287624]
[1772703478817,0.55324011,2132.9,2131.8,0.56824638]
[1772703479112,2.60789872,2133.1,2131.8,0.56824638]
[1772703479113,0.55324011,2132.7,2131.8,0.56824638]
[1772703479607,0.55324011,2132.7,2131.8,0.00537014]
[1772703479813,0.55324011,2132.7,2131.4,0.56287624]
[1772703480009,0.55324011,2132.6,2131.4,0.56287624]
[1772703480203,0.55324011,2132.6,2131.0,0.56287624]
[1772703480404,0.55324011,2132.4,2131.0,0.56287624]
[1772703480706,0.23438,2132.7,2130.5,0.56287624]
[1772703480707,0.55324011,2132.1,2130.5,0.56287624]
[1772703480902,0.55324011,2131.9,2130.5,0.56713902]
[1772703481103,0.55324011,2131.8,2130.5,0.56713902]
[1772703482014,0.55324011,2131.8,2130.6,0.56287624]
[1772703482915,0.55324011,2132.0,2130.8,0.56287624]
[1772703483217,0.00469471,2132.1,2131.1,0.56287624]
[1772703483218,0.55793482,2132.1,2131.1,0.56287624]
[1772703483411,0.00469471,2132.1,2131.1,0.56287624]
[1772703483812,0.55793482,2132.1,2131.2,0.56287624]
[1772703485918,0.55793482,2132.1,2130.7,0.56287624]
[1772703486414,3.89896254,2133.2,2130.5,0.00426278]
[1772703486415,0.55324011,2132.5,2131.2,0.56287624]
[1772703486712,0.55324011,2132.0,2130.7,0.56287624]
[1772703486914,0.55324011,2131.9,2130.7,0.56287624]
[1772703487113,0.55324011,2131.9,2130.5,0.00426278]
[1772703487114,0.55324011,2131.9,2130.5,0.56713902]
[1772703487411,0.55324011,2131.9,2130.5,0.00426278]
[1772703487412,0.55324011,2131.7,2130.5,0.00426278]
[1772703487617,0.55324011,2131.5,2130.5,0.00426278]
[1772703488314,0.55324011,2131.3,2129.9,0.79755624]
[1772703488514,0.55324011,2131.3,2130.0,0.56287624]
[1772703488916,0.55324011,2131.3,2129.8,0.56287624]
[1772703489116,0.55324011,2131.1,2129.8,0.56287624]
[1772703489318,0.55324011,2130.9,2129.8,0.56825532]
[1772703489621,0.55324011,2130.8,2129.8,0.56825532]
[1772703490817,0.55324011,2131.0,2129.9,0.56287624]
[1772703491018,0.55324011,2131.0,2130.1,0.56287624]
[1772703491717,0.55324011,2131.0,2129.9,0.56287624]
[1772703492909,0.55324011,2131.0,2130.0,0.56287624]
[1772703494513,0.55324011,2131.8,2130.2,0.56287624]
[1772703494718,0.55324011,2131.6,2130.2,0.56287624]
[1772703494918,0.55324011,2131.4,2130.2,0.56287624]
[1772703496019,0.55324011,2131.3,2130.2,0.56287624]
[1772703497425,0.55324011,2131.7,2130.4,0.56287624]
[1772703497929,0.55324011,2131.5,2130.4,0.56287624]
[1772703500316,0.55567535,2131.4,2130.4,0.56287624]
[1772703501425,0.55567535,2131.8,2130.6,0.57249035]
[1772703502127,0.55567535,2131.8,2130.8,0.57249035]
[1772703502524,0.00608923,2131.9,2129.9,6.148]
[1772703502525,0.55567535,2131.6,2130.3,0.57249035]
[1772703503323,0.55567535,2131.5,2130.3,0.57249035]
[1772703503624,0.55567535,2131.3,2130.3,0.57249035]
[1772703505523,0.55567535,2131.5,2130.7,0.57249035]
[1772703505728,0.55567535,2131.8,2130.7,0.57249035]
[1772703508128,0.55567535,2131.8,2130.5,0.5892479]
[1772703508330,0.55457858,2131.7,2130.5,0.5892479]
[1772703508627,0.55457858,2131.5,2130.5,0.5892479]
[1772703508835,0.55457858,2131.5,2130.2,0.5892479]
[1772703510227,0.55457858,2131.3,2130.2,0.5892479]
[1772703511229,0.55457858,2131.1,2130.2,0.5892479]
[1772703512933,0.55457858,2131.1,2129.8,3.81455469]
[1772703513136,0.55457858,2131.1,2130.0,0.5892479]
[1772703513833,0.55457858,2131.1,2129.8,0.59462698]
[1772703513834,3.89896254,2131.1,2129.8,0.59462698]
[1772703514034,0.55457858,2131.0,2129.8,0.59462698]
[1772703514434,0.55457858,2130.8,2129.8,0.59462698]
[1772703514637,6.149,2130.7,2129.8,0.59462698]
[1772703514840,0.55457858,2130.6,2129.8,0.59462698]
[1772703515947,0.55457858,2130.6,2129.8,0.00537908]
[1772703516439,0.55457858,2130.7,2129.8,0.59462698]
[1772703517340,0.55457858,2130.5,2129.8,0.00537908]
[1772703520041,0.55457858,2130.5,2129.8,0.59462698]
[1772703520247,6.149,2130.4,2129.8,0.59462698]
[1772703520445,6.70701522,2130.4,2129.8,0.59462698]
[1772703520645,0.55457858,2130.3,2129.8,0.59462698]
[1772703521246,0.55457858,2130.3,2129.8,0.00537908]
[1772703521642,0.55457858,2130.3,2129.6,0.5892479]
[1772703522244,0.55457858,2130.2,2129.1,0.5892479]
[1772703522445,0.55457858,2129.9,2128.7,0.5892479]
[1772703522743,0.55457858,2129.7,2128.7,0.00589008]
[1772703522949,3.89896254,2129.9,2128.7,0.59513798]